fUSD/lending_fUSD_20250623
["ID","MTS","AMOUNT","RATE_DAILY","PERIOD"]
[367158198,1750677075998,-1028.84,0.00025205,3]
[367158199,1750677076008,-490.0,0.00025205,3]
[367158200,1750677076017,-391.73161179,0.00025205,3]
[367158201,1750677076030,-710.19838821,0.00025205,3]
[367158202,1750677076040,-289.80161179,0.00025205,3]
[367158203,1750677076138,-333.03838821,0.00025205,3]
[367158204,1750677076148,-490.0,0.00025205,3]
[367158205,1750677076158,-401.98065926,0.00025205,3]
[367158206,1750677076190,-490.0,0.00024657,2]
[367158207,1750677076200,-3572.34934074,0.00025205,3]
[367158208,1750677076209,-1483.73,0.00025205,3]
[367158209,1750677076219,-490.0,0.00025205,3]
[367158210,1750677076229,-490.0,0.00025205,3]
[367158211,1750677076238,-490.0,0.00025205,3]
[367158212,1750677076248,-1093.5,0.00025205,3]
[367158213,1750677076257,-510.89,0.00025205,3]
[367158214,1750677076267,-993.42,0.00025205,3]
[367158215,1750677076276,-1169.61,0.00025205,3]
[367158216,1750677076286,-490.0,0.00025205,3]
[367158217,1750677076296,-490.0,0.00025205,3]
[367158218,1750677076306,-1006.89,0.00025205,3]
[367158219,1750677076316,-1255.3,0.00025205,3]
[367158220,1750677076326,-581.93,0.00025205,3]
[367158221,1750677076336,-490.0,0.00025205,3]
[367158222,1750677076345,-1130.12,0.00025205,3]
[367158223,1750677076355,-854.91,0.00025205,3]
[367158224,1750677076364,-1906.34,0.00025205,3]
[367158225,1750677076374,-1209.76,0.00025205,3]
[367158226,1750677076383,-5661.34,0.00025205,3]
[367158227,1750677076393,-490.0,0.00025205,3]
[367158228,1750677076403,-490.0,0.00025205,3]
[367158229,1750677076412,-840.17,0.00025205,3]
[367158230,1750677076422,-2678.71,0.00025205,3]
[367158231,1750677076431,-490.0,0.00025205,3]
[367158232,1750677076441,-1941.89,0.00025205,3]
[367158233,1750677076451,-1222.12,0.00025205,3]
[367158234,1750677076461,-889.66,0.00025205,3]
[367158235,1750677076470,-918.26,0.00025205,3]
[367158236,1750677076480,-1032.46,0.00025205,3]
[367158237,1750677076490,-1279.02,0.00025205,3]
[367158238,1750677076500,-2585.29,0.00025205,3]
[367158239,1750677076509,-768.43,0.00025205,3]
[367158240,1750677076519,-2419.6,0.00025205,3]
[367158241,1750677076528,-568.16,0.00025205,3]
[367158242,1750677076538,-490.0,0.00025205,3]
[367158243,1750677076549,-490.0,0.00025205,3]
[367158244,1750677076559,-490.0,0.00025205,3]
[367158245,1750677076835,-547.95613231,0.00025205,3]
[367158248,1750677131819,204.0,0.00019221,2]
[367158251,1750677260651,300.0,0.00025,120]
[367158252,1750677311487,202.0,0.00019221,2]
[367158254,1750677344005,250.0,0.00015,2]
[367158255,1750677344757,300.0,0.00017,2]
[367158259,1750677552648,391.33,0.00027309,120]
[367158263,1750677724495,234.93,0.00013699,2]
[367158266,1750677851849,204.0,0.00019163,2]
[367158267,1750677908274,13564.53451021,0.00014,2]
[367158268,1750677908310,20000.0,0.00014,2]
[367158269,1750677908360,20000.0,0.00014,2]
[367158270,1750677908392,20000.0,0.00014,2]
[367158271,1750677908415,20000.0,0.00014,2]
[367158272,1750677908449,20000.0,0.00014,2]
[367158273,1750677908471,20000.0,0.00014,2]
[367158274,1750677908498,20000.0,0.00014,2]
[367158275,1750677908522,20000.0,0.00014,2]
[367158276,1750677908546,20000.0,0.00014,2]
[367158277,1750677908570,20000.0,0.00014,2]
[367158278,1750677908594,20000.0,0.00014,2]
[367158279,1750677908616,20000.0,0.00014,2]
[367158280,1750677908641,20000.0,0.00014,2]
[367158281,1750677908665,20000.0,0.00014,2]
[367158282,1750677908688,20000.0,0.00014,2]
[367158283,1750677908712,20000.0,0.00014,2]
[367158284,1750677908735,20000.0,0.00014,2]
[367158285,1750677908759,20000.0,0.00014,2]
[367158286,1750677908783,20000.0,0.00014,2]
[367158287,1750677908811,20000.0,0.00014,2]
[367158288,1750677908873,20000.0,0.00014,2]
[367158289,1750677908939,16435.46548979,0.00014,2]
[367158295,1750677986656,3564.53451021,0.000201,2]
[367158296,1750677986682,6435.46548979,0.000201,2]
[367158297,1750677998151,4000.0,0.000201,2]
[367158299,1750678010619,500.0,0.000201,2]
[367158330,1750678103894,-151.0,0.00020187,2]
[367158331,1750678103917,-54.0,0.00020187,2]
[367158333,1750678121592,205.0,0.00019163,2]
[367158343,1750678231828,-180.93,0.00020187,2]
[367158345,1750678231839,-300.0,0.00020204,2]
[367158347,1750678231849,-204.0,0.00020205,2]
[367158349,1750678231858,-344.0,0.0002022,2]
[367158351,1750678231867,-300.0,0.0002022,2]
[367158353,1750678231878,-1200.0,0.0002022,2]
[367158354,1750678231887,-5347.6561514,0.00020221,2]
[367158355,1750678231901,-425.18333004,0.00020221,2]
[367158356,1750678231913,-4057.94275519,0.00020221,2]
[367158357,1750678231924,-12811.8907949,0.00020221,2]
[367158358,1750678231942,-2493.21996199,0.00020221,2]
[367158359,1750678231953,-417.21384185,0.00020221,2]
[367158360,1750678231964,-1176.31923263,0.00020221,2]
[367158361,1750678231974,-250.0,0.00020235,2]
[367158362,1750678231984,-300.0,0.00020242,2]
[367158363,1750678231993,-1802.74038342,0.00020345,2]
[367158364,1750678232006,-697.25961658,0.00020345,2]
[367158365,1750678232016,-1000.0,0.00020345,5]
[367158366,1750678232037,-206.62845784,0.00020576,2]
[367158367,1750678232050,-604.04446757,0.00020576,2]
[367158368,1750678232062,-1265.90801571,0.00020576,2]
[367158369,1750678232083,-423.41905888,0.00020576,2]
[367158370,1750678232093,-151.0,0.00020735,2]
[367158371,1750678232102,-150.0,0.00020768,2]
[367158372,1750678232113,-3624.64363926,0.00020769,2]
[367158373,1750678232125,-10767.60928673,0.00020769,2]
[367158374,1750678232137,-774.48716475,0.00020769,2]
[367158375,1750678232149,-14516.43580082,0.00020769,2]
[367158376,1750678232159,-1760.66,0.00020948,2]
[367158377,1750678232170,-200.0,0.00021002,2]
[367158378,1750678232180,-200.0,0.00021017,2]
[367158379,1750678232190,-2242.20854678,0.00021477,2]
[367158380,1750678232201,-171.05,0.00021525,2]
[367158381,1750678232211,-669.8,0.00021574,2]
[367158382,1750678232222,-836.89479948,0.00021685,2]
[367158384,1750678232233,-250.0,0.00021718,2]
[367158385,1750678232245,-1542.66,0.00021807,2]
[367158386,1750678232254,-71421.13780072,0.00021818,2]
[367158387,1750678232264,-666.0,0.00021822,2]
[367158388,1750678232274,-280.04,0.00021847,2]
[367158390,1750678232285,-391.33,0.00021847,2]
[367158392,1750678232294,-17324.97,0.00021847,2]
[367158394,1750678232304,-280.04,0.00021852,2]
[367158396,1750678232314,-280.04,0.00021858,2]
[367158398,1750678232323,-280.04,0.00021864,2]
[367158400,1750678232332,-280.04,0.0002187,2]
[367158401,1750678232341,-280.04,0.00021875,2]
[367158402,1750678232350,-280.04,0.00021881,2]
[367158403,1750678232360,-280.04,0.00021887,2]
[367158404,1750678232369,-280.04,0.00021893,2]
[367158405,1750678232378,-2751.0,0.00021895,2]
[367158406,1750678232387,-280.04,0.00021898,2]
[367158407,1750678232397,-280.04,0.00021904,2]
[367158408,1750678232407,-280.04,0.0002191,2]
[367158409,1750678232416,-280.04,0.00021916,2]
[367158410,1750678232426,-24354.40860823,0.00021917,2]
[367158411,1750678232435,-280.04,0.00021921,2]
[367158412,1750678232444,-280.04,0.00021927,2]
[367158413,1750678232453,-173.63,0.0002193,2]
[367158414,1750678232463,-280.04,0.00021933,2]
[367158415,1750678232472,-280.04,0.00021939,2]
[367158416,1750678232481,-280.04,0.00021944,2]
[367158417,1750678232490,-116.45671705,0.0002195,2]
[367158418,1750678232503,-163.58328295,0.0002195,2]
[367158419,1750678232512,-280.04,0.00021956,2]
[367158420,1750678232522,-420.0,0.00022012,2]
[367158421,1750678232532,-1680.0,0.00022118,2]
[367158422,1750678232541,-300.0,0.00022206,2]
[367158423,1750678232551,-250.0,0.00022206,2]
[367158424,1750678232561,-300.0,0.00022206,2]
[367158425,1750678232571,-250.0,0.00022206,2]
[367158426,1750678232581,-2500.0,0.00022243,2]
[367158427,1750678232591,-1000.0,0.00022243,5]
[367158428,1750678232600,-2500.0,0.00022243,2]
[367158429,1750678232610,-204.0,0.00022299,5]
[367158430,1750678232619,-316.32180497,0.0002231,2]
[367158431,1750678232632,-2183.67819503,0.0002231,2]
[367158432,1750678232641,-1000.0,0.0002231,5]
[367158433,1750678232651,-150.0,0.00022414,2]
[367158434,1750678232660,-561.34750148,0.00022446,2]
[367158435,1750678232670,-834.59255148,0.00022637,2]
[367158436,1750678232679,-150.0,0.0002269,4]
[367158437,1750678232689,-151.0,0.00022701,2]
[367158438,1750678232698,-151.0,0.00022701,2]
[367158439,1750678232708,-151.0,0.00022701,2]
[367158440,1750678232717,-151.0,0.00022701,2]
[367158441,1750678232726,-151.0,0.00022701,2]
[367158442,1750678232736,-7142.856,0.00022701,2]
[367158443,1750678232746,-151.0,0.00022701,2]
[367158444,1750678232755,-151.0,0.00022701,2]
[367158445,1750678232764,-151.0,0.00022701,2]
[367158446,1750678232774,-151.0,0.00022701,2]
[367158447,1750678232783,-151.0,0.00022701,2]
[367158448,1750678232792,-151.0,0.00022701,2]
[367158449,1750678232802,-151.0,0.00022701,2]
[367158450,1750678232812,-500.0,0.00022701,2]
[367158451,1750678232822,-151.0,0.00022701,2]
[367158452,1750678232834,-1000.0,0.00022701,2]
[367158453,1750678232844,-151.0,0.00022701,2]
[367158454,1750678232853,-500.0,0.00022701,2]
[367158455,1750678232864,-151.0,0.00022701,2]
[367158456,1750678232874,-1000.0,0.00022701,2]
[367158457,1750678232883,-151.0,0.00022701,2]
[367158458,1750678232893,-151.0,0.00022701,2]
[367158459,1750678232902,-500.0,0.00022701,2]
[367158460,1750678232912,-245.09919405,0.00022701,2]
[367158461,1750678232923,-1000.0,0.00022701,2]
[367158462,1750678232933,-151.0,0.00022701,2]
[367158463,1750678232943,-583.94697035,0.00022701,2]
[367158464,1750678232953,-1000.0,0.00022701,2]
[367158465,1750678232962,-151.0,0.00022701,2]
[367158466,1750678232972,-151.0,0.00022701,2]
[367158467,1750678232982,-500.0,0.00022701,2]
[367158468,1750678232992,-1000.0,0.00022701,2]
[367158469,1750678233002,-151.0,0.00022701,2]
[367158470,1750678233340,-500.0,0.00022701,2]
[367158471,1750678233350,-1000.0,0.00022701,2]
[367158472,1750678233360,-151.0,0.00022701,2]
[367158473,1750678233370,-500.0,0.00022701,2]
[367158474,1750678233380,-1000.0,0.00022701,2]
[367158475,1750678233390,-500.0,0.00022701,2]
[367158476,1750678233400,-500.0,0.00022701,2]
[367158477,1750678233409,-151.0,0.00022701,2]
[367158478,1750678233420,-500.0,0.00022701,2]
[367158479,1750678233430,-151.0,0.00022701,2]
[367158480,1750678233439,-500.0,0.00022701,2]
[367158481,1750678233449,-205.0,0.00022701,2]
[367158482,1750678233460,-500.0,0.00022701,2]
[367158483,1750678233470,-500.0,0.00022701,2]
[367158484,1750678233485,-500.0,0.00022701,2]
[367158485,1750678233495,-500.0,0.00022701,2]
[367158486,1750678233506,-152.46797554,0.00022701,2]
[367158487,1750678233516,-500.0,0.00022701,2]
[367158488,1750678233525,-500.0,0.00022701,2]
[367158489,1750678233536,-207.4,0.00022701,2]
[367158490,1750678233546,-668.65185757,0.00022701,2]
[367158491,1750678233556,-500.0,0.00022701,2]
[367158492,1750678233566,-500.0,0.00022701,2]
[367158493,1750678233575,-500.0,0.00022701,2]
[367158494,1750678233585,-500.0,0.00022701,2]
[367158495,1750678233595,-500.0,0.00022701,2]
[367158496,1750678233605,-500.0,0.00022701,2]
[367158497,1750678233614,-500.0,0.00022701,2]
[367158498,1750678233624,-500.0,0.00022701,2]
[367158499,1750678233634,-500.0,0.00022701,2]
[367158500,1750678233643,-500.0,0.00022701,2]
[367158501,1750678233652,-7407.141672,0.00022756,2]
[367158502,1750678233663,-5125.13398271,0.00022811,2]
[367158503,1750678233676,-466.27719594,0.00022811,2]
[367158504,1750678233688,-434.785,0.00022811,2]
[367158505,1750678233699,-255.24588608,0.00022811,2]
[367158506,1750678233710,-1399.76384913,0.00022811,2]
[367158507,1750678233720,-1157.42488693,0.00022866,2]
[367158508,1750678233731,-150.0,0.00022967,4]
[367158509,1750678233740,-150.0,0.00023244,4]
[367158510,1750678233750,-157.22271904,0.00023249,2]
[367158511,1750678233760,-151.0,0.00023249,2]
[367158512,1750678233769,-150.0,0.00023521,4]
[367158513,1750678233781,-153.611,0.00023706,4]
[367158514,1750678233791,-3161.389,0.00023706,4]
[367158515,1750678233802,-179.85194782,0.00023767,7]
[367158516,1750678233814,-19.14805218,0.00023767,7]
[367158517,1750678233824,-150.0,0.00023797,4]
[367158518,1750678233833,-185.04409519,0.000238,2]
[367158519,1750678233857,-379.864446,0.000238,2]
[367158522,1750678237784,-404.05199231,0.000231,8]
[367158523,1750678237794,-404.0519922,0.000231,8]
[367158524,1750678237803,-404.0519922,0.000231,8]
[367158526,1750678237812,-404.0519922,0.000231,8]
[367158527,1750678237821,-372.21203109,0.00023107,8]
[367158528,1750678237832,-31.83996111,0.00023107,8]
[367158529,1750678237841,-404.0519922,0.00023659,9]
[367158530,1750678237850,-187.3184572,0.000238,2]
[367158531,1750678237869,-606.4717904,0.000238,2]
[367158536,1750678238315,500.0,0.00027397,120]
[367158541,1750678240478,-340.30121121,0.000238,2]
[367158542,1750678240488,-163.31,0.00023836,2]
[367158543,1750678240498,-200.0,0.0002388,2]
[367158544,1750678240507,-199.0,0.00023908,7]
[367158545,1750678240516,-158.24,0.00024,2]
[367158546,1750678240525,-156.587,0.0002407,2]
[367158547,1750678240535,-215.0738,0.0002407,2]
[367158548,1750678240544,-335.55123848,0.0002407,2]
[367158549,1750678240554,-150.0,0.00024074,4]
[367158550,1750678240564,-150.99,0.00024174,2]
[367158551,1750678240573,-2351.0,0.00024194,2]
[367158552,1750678240583,-741.66658,0.000242,2]
[367158553,1750678240592,-404.0519922,0.0002421,10]
[367158554,1750678240601,-150.0,0.00024351,4]
[367158555,1750678240611,-204.0,0.00024394,8]
[367158556,1750678240827,-1000.0,0.00024457,2]
[367158557,1750678240837,-173.86627982,0.00024457,2]
[367158558,1750678240847,-651.50306144,0.00024457,2]
[367158559,1750678240857,-177.64348792,0.00024457,2]
[367158560,1750678240866,-462.14,0.00024521,2]
[367158561,1750678240876,-3470.0973,0.00024557,2]
[367158562,1750678240886,-4667.72168562,0.00024557,2]
[367158563,1750678240901,-16450.73810399,0.00024557,2]
[367158564,1750678241040,-1338.30000001,0.00024557,2]
[367158565,1750678241091,-408.07,0.00024557,2]
[367158566,1750678241102,-347.1929996,0.00024557,2]
[367158576,1750678243026,-201.0,0.00020205,2]
[367158577,1750678243036,-727.60134739,0.00024557,2]
[367158578,1750678243047,-10800.66306339,0.00024557,2]
[367158579,1750678243059,-13098.99422286,0.00024557,2]
[367158580,1750678243196,-1270.39179378,0.00024557,2]
[367158581,1750678243220,-296.5918881,0.00024557,2]
[367158582,1750678243306,-6522.167363,0.00024557,2]
[367158584,1750678246059,-373.22169948,0.00024557,2]
[367158585,1750678246115,-4383.16711284,0.00024557,2]
[367158586,1750678246127,-930.50948309,0.00024557,2]
[367158587,1750678246138,-1051.0,0.00024557,2]
[367158588,1750678246174,-119814.54789269,0.00024557,2]
[367158589,1750678246230,-469.38354265,0.00024557,2]
[367158590,1750678246245,-1231.84697311,0.00024557,2]
[367158591,1750678246255,-606.17845212,0.00024557,2]
[367158592,1750678246266,-10373.30667173,0.00024557,2]
[367158593,1750678246278,-268.987887,0.00024557,2]
[367158594,1750678246290,-318.8803487,0.00024557,2]
[367158595,1750678246307,-79.77046885,0.00024557,2]
[367158596,1750678246317,-436.05052429,0.00024557,2]
[367158598,1750678284764,-1000.0,0.00037879,120]
[367158599,1750678284794,-1000.0,0.00037879,120]
[367158600,1750678284826,-2857.92559522,0.00037879,120]
[367158601,1750678284856,-1942.10657593,0.00037879,120]
[367158602,1750678284886,-1000000.0,0.00037879,60]
[367158606,1750678388540,639.0,0.0003788,60]
[367158607,1750678388774,639.0,0.0003788,60]
[367158608,1750678388844,639.0,0.0003788,60]
[367158609,1750678389112,639.0,0.0003788,60]
[367158610,1750678389721,644.0,0.0003788,60]
[367158611,1750678389916,639.0,0.0003788,60]
[367158612,1750678411700,150.5,0.00026058,120]
[367158613,1750678412153,150.5,0.00026048,120]
[367158614,1750678412302,205.0,0.00026058,120]
[367158615,1750678412605,150.5,0.00026038,120]
[367158616,1750678412737,205.0,0.00026048,120]
[367158617,1750678413243,205.0,0.00026038,120]
[367158618,1750678464568,606.78865625,0.0003788,60]
[367158620,1750678503137,249.38261,0.0003788,120]
[367158621,1750678503178,1343.25253383,0.00024658,120]
[367158622,1750678503215,1452.20996616,0.0003788,120]
[367158623,1750678524575,226.12264953,0.0003788,120]
[367158624,1750678533065,150.5,0.00026058,120]
[367158625,1750678533099,1066.66,0.00026435,120]
[367158626,1750678533553,150.5,0.00026048,120]
[367158627,1750678533997,164.59,0.00026038,120]
[367158628,1750678542299,150.0,0.000201,2]
[367158630,1750678616888,1704.96,0.00022879,120]
[367158632,1750678676030,380.420926,0.00037879,120]
[367158633,1750678696439,175.18,0.00018324,2]
[367158635,1750678738486,165.00684533,0.000201,2]
[367158638,1750678761818,-333.17066334,0.00020397,2]
[367158641,1750678875815,500.0,0.00037879,120]
[367158642,1750678914345,647.16249,0.00037879,120]
[367158643,1750678929051,187.73,0.00016712,2]
[367158646,1750679060264,360.14,0.00013699,2]
[367158647,1750679061383,-333.17066334,0.00020187,2]
[367158650,1750679145182,333.170664,0.00020086,2]
[367158651,1750679146477,288.43875472,0.00027,120]
[367158652,1750679147156,250.0,0.00015,2]
[367158653,1750679148256,300.0,0.00017,2]
[367158654,1750679149322,350.0,0.00019,2]
[367158656,1750679199534,326.12616224,0.00024931,120]
[367158683,1750679436654,-26.96933666,0.00020187,2]
[367158684,1750679436664,-151.0,0.00020293,2]
[367158685,1750679436673,-166.02550187,0.00020293,2]
[367158686,1750679436683,-151.0,0.00020385,2]
[367158687,1750679436692,-151.0,0.00020385,2]
[367158688,1750679436701,-151.0,0.00020385,2]
[367158689,1750679436710,-151.0,0.00020385,2]
[367158690,1750679436720,-205.14962516,0.00020385,2]
[367158691,1750679436729,-1200.0,0.00020395,2]
[367158692,1750679436738,-300.0,0.00020396,2]
[367158693,1750679436748,-300.0,0.00020396,2]
[367158694,1750679436758,-240.14169256,0.00020841,2]
[367158695,1750679436772,-400.0,0.00021,2]
[367158696,1750679436782,-171.49,0.00021847,2]
[367158697,1750679436792,-150.0,0.00021847,2]
[367158698,1750679436801,-253.7922815,0.000222,2]
[367158699,1750679436813,-166.2077185,0.000222,2]
[367158700,1750679436823,-1680.0,0.00022305,2]
[367158701,1750679436832,-150.0,0.00022414,2]
[367158702,1750679436842,-167.02,0.00022645,2]
[367158703,1750679436852,-666.0,0.0002266,2]
[367158704,1750679436862,-154.8,0.00022666,2]
[367158705,1750679436871,-1017.19,0.00022684,2]
[367158706,1750679436880,-1308.01,0.00022685,2]
[367158707,1750679436889,-682.93,0.00022695,2]
[367158708,1750679436898,-500.0,0.000227,2]
[367158709,1750679436908,-151.0,0.00022701,2]
[367158710,1750679436918,-1594.45770178,0.00022701,2]
[367158711,1750679436927,-500.0,0.00022701,2]
[367158712,1750679436937,-207.4,0.00022701,2]
[367158713,1750679436946,-500.0,0.00022701,2]
[367158714,1750679436956,-500.0,0.00022701,2]
[367158715,1750679436966,-335.28216513,0.00022701,2]
[367158716,1750679436978,-164.71783487,0.00022701,2]
[367158717,1750679436987,-500.0,0.00022701,2]
[367158718,1750679436996,-116.96414381,0.00022701,2]
[367158719,1750679437035,-383.03585619,0.00022701,2]
[367158720,1750679437045,-500.0,0.00022701,2]
[367158721,1750679437054,-500.0,0.00022701,2]
[367158722,1750679437063,-575.19762739,0.00022701,2]
[367158723,1750679437072,-250.0,0.00022721,2]
[367158724,1750679437082,-333.17066334,0.00022736,2]
[367158726,1750679437091,-12264.92,0.00022746,2]
[367158728,1750679437100,-250.0,0.00022772,2]
[367158730,1750679437110,-3543.35,0.00022854,2]
[367158732,1750679437119,-312.68,0.00022904,2]
[367158734,1750679437129,-1182.2,0.00022917,2]
[367158736,1750679437137,-450.0,0.00023,2]
[367158738,1750679437146,-317.85723459,0.000232,8]
[367158740,1750679437155,-317.85723448,0.000232,8]
[367158742,1750679437164,-317.85723448,0.000232,8]
[367158761,1750679437255,-465.1,0.00023276,2]
[367158764,1750679437264,-465.1,0.00023282,2]
[367158767,1750679437273,-71.89481456,0.00023288,2]
[367158772,1750679437293,-393.20518544,0.00023288,2]
[367158775,1750679437302,-334.44285397,0.00023294,2]
[367158779,1750679437314,-130.65714603,0.00023294,2]
[367158782,1750679437323,-465.1,0.00023301,2]
[367158785,1750679437331,-465.1,0.00023307,2]
[367158787,1750679437340,-465.1,0.00023313,2]
[367158789,1750679437350,-88.55614321,0.00023319,2]
[367158791,1750679437362,-376.54385679,0.00023319,2]
[367158793,1750679437371,-465.1,0.00023325,2]
[367158795,1750679437379,-465.1,0.00023331,2]
[367158797,1750679437388,-465.1,0.00023337,2]
[367158799,1750679437397,-190.17759891,0.00023344,2]
[367158800,1750679437408,-274.92240109,0.00023344,2]
[367158801,1750679437418,-122.07759891,0.0002335,2]
[367158802,1750679437429,-343.02240109,0.0002335,2]
[367158803,1750679437438,-465.1,0.00023356,2]
[367158804,1750679437447,-219.38636536,0.00023362,2]
[367158805,1750679437458,-245.71363464,0.00023362,2]
[367158806,1750679437467,-306.29913569,0.00023368,2]
[367158807,1750679437482,-158.80086431,0.00023368,2]
[367158808,1750679437492,-465.1,0.00023374,2]
[367158809,1750679437501,-465.1,0.0002338,2]
[367158810,1750679437510,-395.13544581,0.00023386,2]
[367158811,1750679437525,-69.96455419,0.00023386,2]
[367158812,1750679437534,-465.1,0.00023393,2]
[367158813,1750679437543,-42.37751107,0.00023488,2]
[367158818,1750679438032,-160.62248893,0.00023488,2]
[367158819,1750679438043,-135.45170507,0.00023498,2]
[367158820,1750679438086,-931.20829493,0.00023498,2]
[367158821,1750679438095,-154.8,0.00023516,2]
[367158822,1750679438104,-317.85723448,0.00023555,9]
[367158823,1750679438114,-2751.0,0.00023565,2]
[367158824,1750679438124,-150.0,0.00023659,4]
[367158825,1750679438132,-1000.0,0.00023697,2]
[367158826,1750679438141,-2951.0,0.00023769,2]
[367158827,1750679438150,-1616.46878367,0.000238,2]
[367158828,1750679438245,-94.53121633,0.000238,2]
[367158829,1750679438255,-176.74,0.00023836,2]
[367158830,1750679438264,-171.0,0.00023836,2]
[367158831,1750679438274,-1165.94,0.00023836,2]
[367158832,1750679438283,-355.16,0.00023836,2]
[367158833,1750679438293,-669.83869099,0.00023939,2]
[367158834,1750679438302,-158.24,0.00024,2]
[367158835,1750679438312,-250.0,0.00024032,2]
[367158836,1750679438322,-2500.0,0.00024032,2]
[367158837,1750679438332,-2592.135,0.00024044,5]
[367158838,1750679438341,-153.611,0.00024044,5]
[367158839,1750679438351,-156.587,0.0002407,2]
[367158840,1750679438361,-215.0738,0.0002407,2]
[367158841,1750679438370,-317.85723448,0.00024107,10]
[367158842,1750679438380,-544.0,0.00024163,2]
[367158843,1750679438389,-669.83869099,0.00024236,2]
[367158844,1750679438399,-18367.56153868,0.00024249,2]
[367158846,1750679438408,-455.75256344,0.00024254,2]
[367158848,1750679438418,-166.83,0.00024304,2]
[367158850,1750679438427,-477.71518,0.0002432,2]
[367158852,1750679438436,-203.0,0.00024358,3]
[367158854,1750679438449,-154.8,0.00024366,2]
[367158856,1750679438459,-150.0,0.00024384,2]
[367158858,1750679438470,-2351.0,0.00024394,2]
[367158860,1750679438479,-834.59255148,0.00024396,2]
[367158862,1750679438489,-2782.0,0.00024411,2]
[367158864,1750679438499,-3376.8204375,0.00024498,2]
[367159155,1750679441442,-0.03685118,0.00024498,2]
[367159157,1750679441454,-125.14271132,0.00024498,2]
[367159159,1750679441463,-5585.3576904,0.000245,2]
[367159161,1750679441475,-416.08539783,0.000245,2]
[367159165,1750679441503,-675.13488109,0.000245,2]
[367159183,1750679441660,-7451.42203068,0.000245,2]
[367159185,1750679441669,-2269.0,0.00024504,2]
[367159187,1750679441679,-3208.35703791,0.00024536,2]
[367159189,1750679441689,-4374.97586498,0.00024548,2]
[367159191,1750679441697,-687.6136,0.00024557,2]
[367159193,1750679441707,-1000.0,0.00024557,2]
[367159195,1750679441717,-5000.0,0.00024557,2]
[367159197,1750679441726,-384.8672,0.00024557,2]
[367159199,1750679441736,-3337.0651,0.00024557,3]
[367159201,1750679441745,-2133.15103246,0.00024557,2]
[367159361,1750679443234,-366.84896754,0.00024557,2]
[367159363,1750679443243,-252.39599816,0.00024557,2]
[367159373,1750679443341,-1111.21146799,0.00024557,2]
[367159380,1750679443395,-569.8394,0.00024557,2]
[367159382,1750679443404,-1266.10575719,0.00024557,2]
[367159384,1750679443414,-237.64494825,0.00024557,2]
[367159386,1750679443423,-4374.97586487,0.00024577,2]
[367159388,1750679443432,-391.33,0.00024578,2]
[367159390,1750679443443,-1000.0,0.000246,2]
[367159392,1750679443452,-1000.0,0.000246,2]
[367159394,1750679443462,-1000.0,0.000246,2]
[367159396,1750679443471,-756.10402969,0.000246,2]
[367159641,1750679446285,-243.89597031,0.000246,2]
[367159643,1750679446294,-1007.0,0.000246,2]
[367159645,1750679446304,-1000.0,0.000246,2]
[367159647,1750679446314,-1000.0,0.000246,2]
[367159649,1750679446324,-1171.0,0.000246,2]
[367159651,1750679446333,-4374.97586487,0.00024607,2]